bitfinex-derivatives/quotes_BTCF0:USTF0_20251208
["timestamp","ask_amount","ask_price","bid_price","bid_amount"]
[1765210067695,0.0257854,90089.0,90086.0,0.0111007]
[1765210067696,0.05906044,90102.0,90091.0,0.14228]
[1765210067891,0.02582077,90101.0,90090.0,0.04365]
[1765210068095,0.0011097,90115.0,90098.0,0.07212]
[1765210068096,0.07015954,90099.0,90098.0,0.07212]
[1765210068305,0.03691987,90099.0,90098.0,0.07212]
[1765210068908,0.17607987,90099.0,90093.0,0.0110997]
[1765210069203,0.02582077,90098.0,90096.0,0.0110994]
[1765210069401,0.02582077,90097.0,90096.0,0.0832194]
[1765210069594,0.0110991,90099.0,90096.0,0.0832194]
[1765210069794,0.0110993,90097.0,90096.0,0.0832194]
[1765210070000,0.10644007,90097.0,90092.0,0.0110998]
[1765210070208,0.02582077,90096.0,90095.0,0.0110996]
[1765210070405,0.09534077,90096.0,90095.0,0.0110996]
[1765210070808,0.02582077,90096.0,90095.0,0.1533796]
[1765210071007,0.0110989,90101.0,90100.0,0.0110989]
[1765210071197,0.13916,90104.0,90101.0,0.0110987]
[1765210071397,0.02590497,90103.0,90102.0,0.14228]
[1765210072298,0.13916,90096.0,90095.0,0.001]
[1765210072499,0.16506497,90096.0,90095.0,0.0120996]
[1765210073308,0.16506497,90096.0,90095.0,0.0110996]
[1765210073509,0.17616437,90096.0,90095.0,0.0110996]
[1765210073806,0.17616437,90096.0,90095.0,0.0200996]
[1765210074009,0.17616437,90096.0,90095.0,0.009]
[1765210074211,0.17616437,90096.0,90095.0,0.01]
[1765210074406,0.16506497,90096.0,90095.0,0.08212]
[1765210074812,0.02590497,90096.0,90095.0,0.15228]
[1765210075109,0.1502584,90105.0,90104.0,0.07212]
[1765210075311,0.02593822,90105.0,90095.0,0.011]
[1765210075610,0.09545822,90104.0,90103.0,0.0110985]
[1765210075800,0.13916,90101.0,90095.0,0.001]
[1765210076111,0.1502594,90096.0,90095.0,0.013]
[1765210076309,0.02593822,90096.0,90095.0,0.15528]
[1765210076510,0.16509822,90096.0,90095.0,0.012]
[1765210076923,0.0110965,90120.0,90095.0,0.012]
[1765210076924,0.07874726,90119.0,90114.0,0.14228]
[1765210077209,0.00110939,90140.0,90133.0,0.14228]
[1765210077410,0.00110939,90140.0,90139.0,0.14228]
[1765210078003,0.14026939,90140.0,90137.0,0.0110944]
[1765210078199,0.06952,90133.0,90132.0,0.0110949]
[1765210078406,0.00110939,90140.0,90135.0,0.0110946]
[1765210078812,0.14026939,90140.0,90139.0,0.001]
[1765210080106,0.1606355,90128.0,90127.0,0.0001665]
[1765210080299,0.14954,90117.0,90116.0,0.0398035]
[1765210080509,0.0110987,90102.0,90101.0,0.0398035]
[1765210080713,0.1606392,90098.0,90096.0,0.03448628]
[1765210081012,0.14954,90088.0,90087.0,0.05970526]
[1765210081203,0.14954,90086.0,90085.0,3.07e-06]
[1765210081418,0.14954,90074.0,90073.0,0.0795861]
[1765210081610,0.14954,90067.0,90066.0,0.0795861]
[1765210081813,0.14954,90065.0,90064.0,0.1108926]
[1765210082006,0.14954,90065.0,90064.0,0.0313065]
[1765210082212,0.54954,90065.0,90064.0,9e-08]
[1765210082509,0.0111051,90050.0,90024.0,0.0111083]
[1765210083512,0.0111044,90056.0,90024.0,0.0111083]
[1765210083513,0.0111062,90041.0,90039.0,0.0001665]
[1765210083909,0.0111054,90048.0,90039.0,0.0001665]
[1765210084112,0.0111054,90048.0,90047.0,0.003]
[1765210084327,0.00010497,90049.0,90048.0,0.18891]
[1765210085910,0.00010497,90049.0,90048.0,0.20191]
[1765210086112,0.0001665,90058.0,90057.0,0.14532]
[1765210086621,0.0001665,90058.0,90057.0,0.1564242]
[1765210087220,0.0001665,90058.0,90057.0,0.14732]
[1765210087720,0.0001665,90058.0,90057.0,0.15832]
[1765210089515,0.0001665,90058.0,90057.0,0.013]
[1765210095224,0.0111062,90041.0,90036.0,2e-08]
[1765210095423,0.0111067,90037.0,90036.0,2e-08]
[1765210095624,0.0111104,90007.0,90006.0,0.04359]
[1765210096125,0.0111072,90033.0,90032.0,0.13152]
[1765210096627,0.0111072,90033.0,90023.0,0.00016659]
[1765210096628,0.0111083,90024.0,90023.0,0.00016659]
[1765210097932,0.0171083,90024.0,90023.0,0.16903659]
[1765210098314,0.006,90024.0,90023.0,0.16903659]
[1765210098521,0.011,90024.0,90023.0,0.18014499]
[1765210098829,0.00016659,90042.0,90041.0,0.16887]
[1765210099220,0.00016659,90042.0,90041.0,0.1799762]
[1765210099725,0.00016659,90042.0,90041.0,0.16887]
[1765210101528,0.00016659,90042.0,90041.0,0.17487]
[1765210101927,0.00016659,90042.0,90041.0,0.16887]
[1765210102129,0.00016659,90042.0,90041.0,0.17487]
[1765210102429,0.00016659,90042.0,90041.0,0.006]
[1765210102819,0.00016659,90042.0,90041.0,0.09125]
[1765210103023,0.00016659,90042.0,90041.0,0.17487]
[1765210103524,0.00016659,90042.0,90041.0,0.009]
[1765210104148,0.00016659,90042.0,90041.0,0.008]
[1765210104751,0.00016659,90042.0,90041.0,0.007]
[1765210105049,0.40016659,90042.0,90041.0,0.005]
[1765210105258,0.40016659,90042.0,90023.0,0.00016659]
[1765210105445,0.0111082,90026.0,90025.0,0.16887]
[1765210105641,0.0111082,90026.0,90023.0,0.00016659]
[1765210106152,0.0111082,90026.0,90025.0,0.16887]
[1765210106843,0.0111082,90026.0,90025.0,0.17587]
[1765210108243,0.0121082,90026.0,90025.0,0.007]
[1765210108647,0.0121082,90026.0,90025.0,0.17587]
[1765210108844,0.0121082,90026.0,90025.0,0.007]
[1765210109842,0.0171082,90026.0,90025.0,0.008]
[1765210110041,0.0171082,90026.0,90025.0,0.17687]
[1765210110241,0.0171082,90026.0,90025.0,0.16987]
[1765210110242,0.0201082,90026.0,90025.0,0.16987]
[1765210110948,0.0171082,90026.0,90025.0,0.17087]
[1765210111454,0.0201082,90026.0,90025.0,0.16987]
[1765210112156,0.0141082,90026.0,90025.0,0.16887]
[1765210112652,0.0141082,90026.0,90025.0,0.1799782]
[1765210112653,0.003,90026.0,90025.0,0.1799782]
[1765210112853,0.002,90026.0,90025.0,0.1799782]
[1765210113156,0.0111077,90030.0,90029.0,0.16887]
[1765210114556,0.0111077,90030.0,90029.0,0.17687]
[1765210115356,0.0121077,90030.0,90029.0,0.17687]
[1765210115854,0.001,90030.0,90029.0,0.17687]
[1765210116056,0.00016659,90042.0,90041.0,0.16887]
[1765210116454,0.01127269,90042.0,90041.0,0.16887]
[1765210116755,0.00016659,90042.0,90041.0,0.16887]
[1765210117360,0.01127269,90042.0,90041.0,0.16887]
[1765210117859,0.01127269,90042.0,90041.0,0.17887]
[1765210119256,0.01127269,90042.0,90041.0,0.17787]
[1765210119657,0.01127269,90042.0,90041.0,0.009]
[1765210119857,0.01127269,90042.0,90034.0,0.13152]
[1765210119858,0.011107,90035.0,90034.0,0.13152]
[1765210120159,0.0111066,90038.0,90034.0,0.04627]
[1765210120370,0.0591387,90056.0,90055.0,0.16887]
[1765210120545,0.0591387,90056.0,90048.0,0.04627]
[1765210120546,0.0591387,90060.0,90054.0,0.0111045]
[1765210120858,0.0591387,90062.0,90061.0,0.16887]
[1765210121161,0.0591387,90064.0,90062.0,0.2262436]
[1765210121347,0.0591387,90067.0,90066.0,0.16887]
[1765210121550,0.0591387,90068.0,90067.0,0.179973]
[1765210121751,0.00016659,90072.0,90071.0,0.16887]
[1765210123058,0.00016659,90072.0,90071.0,0.17487]
[1765210124157,0.00016659,90072.0,90071.0,0.16887]
[1765210124361,0.00016659,90072.0,90071.0,0.17287]
[1765210124755,0.00116659,90072.0,90071.0,0.17287]
[1765210125358,0.00116659,90072.0,90071.0,0.004]
[1765210125558,0.00016659,90072.0,90071.0,0.004]
[1765210125758,0.0111025,90071.0,90062.0,0.04627]
[1765210125962,0.0111045,90055.0,90054.0,0.00016659]
[1765210126457,0.0111045,90055.0,90054.0,0.15936659]
[1765210127551,0.0111045,90055.0,90054.0,0.16136659]
[1765210128256,0.0181045,90055.0,90054.0,0.16236659]
[1765210128858,0.0111045,90055.0,90054.0,0.16136659]
[1765210129054,0.0121045,90055.0,90054.0,0.16136659]
[1765210130460,0.001,90055.0,90054.0,0.16136659]
[1765210130661,0.00016659,90072.0,90054.0,0.16136659]
[1765210130662,0.0111036,90063.0,90062.0,0.1592]
[1765210131052,0.00016659,90072.0,90071.0,0.1592]
[1765210131260,0.01126899,90072.0,90071.0,0.1592]
[1765210131458,0.00016659,90072.0,90071.0,0.1592]
[1765210132463,0.00016659,90072.0,90071.0,0.1622]
[1765210132765,0.00116659,90072.0,90071.0,0.1622]
[1765210133662,0.00116659,90072.0,90071.0,0.1612]
[1765210134265,0.00016659,90072.0,90071.0,0.1612]
[1765210134463,0.00116659,90072.0,90071.0,0.1612]
[1765210134664,0.0111014,90080.0,90079.0,0.1592]
[1765210135659,0.0111014,90080.0,90077.0,0.04977]
[1765210135861,0.0111014,90080.0,90079.0,0.004]
[1765210136066,0.0121014,90080.0,90079.0,0.004]
[1765210136469,0.0121014,90080.0,90079.0,0.002]
[1765210137375,0.0111014,90080.0,90079.0,0.002]
[1765210137559,0.0111025,90071.0,90070.0,9e-08]
[1765210137766,0.0111052,90049.0,90038.0,0.04977]
[1765210137966,0.0111052,90049.0,90048.0,0.20547]
[1765210138472,0.0111052,90049.0,90048.0,0.04627]
[1765210139182,0.0111052,90049.0,90048.0,0.20547]
[1765210139469,0.0111052,90049.0,90048.0,0.21147]
[1765210140577,0.0111052,90049.0,90048.0,0.21347]
[1765210141280,0.0297863,90040.0,90039.0,0.00016659]
[1765210141673,0.0111063,90040.0,90039.0,0.15403659]
[1765210142372,0.15945,90030.0,90029.0,0.03971849]
[1765210142575,0.15945,90016.0,90015.0,0.00746093]
[1765210142777,0.15945,90016.0,90015.0,3e-08]
[1765210143281,0.170562,89994.0,89976.0,0.03971849]
[1765210143478,0.170562,89994.0,89977.0,0.0111141]
[1765210143681,0.170562,89994.0,89985.0,0.00016659]
[1765210144473,0.174562,89994.0,89993.0,0.00110337]
[1765210145078,0.170562,89994.0,89993.0,0.00010337]
[1765210145286,0.15945,89991.0,89985.0,0.00016659]
[1765210146182,0.15957915,89991.0,89985.0,0.00016659]
[1765210146771,0.15957915,89991.0,89990.0,0.00211124]
[1765210146772,0.16657915,89991.0,89990.0,0.00211124]
[1765210146985,0.170563,89986.0,89985.0,0.00016659]
[1765210147283,0.170563,89986.0,89985.0,9e-08]
[1765210147484,0.0111155,89966.0,89965.0,0.15498155]
[1765210147787,0.00011923,89966.0,89965.0,0.15498155]
[1765210149780,0.00016669,89974.0,89973.0,0.15387]
[1765210149981,0.0111132,89985.0,89984.0,0.15387]
[1765210150684,0.0111147,89972.0,89971.0,0.15387]
[1765210151786,0.0121147,89972.0,89971.0,0.15387]
[1765210152287,0.0131147,89972.0,89971.0,0.15387]
[1765210153881,0.0111155,89966.0,89965.0,0.08244155]
[1765210154082,0.0111155,89966.0,89965.0,0.16471155]
[1765210154676,0.0965455,89966.0,89965.0,0.16471155]
[1765210155079,0.0111155,89966.0,89965.0,0.16471155]
[1765210156183,0.0965455,89966.0,89965.0,0.16471155]
[1765210156486,0.0111155,89966.0,89965.0,0.16471155]
[1765210158377,0.01128049,89980.0,89979.0,0.1636]
[1765210159486,0.00216669,89980.0,89979.0,0.1636]
[1765210161185,0.00216669,89980.0,89979.0,0.1646]
[1765210161786,0.00016669,89980.0,89979.0,0.1646]
[1765210162488,0.17250669,89980.0,89979.0,0.1646]
[1765210162691,0.17250669,89980.0,89979.0,0.1636]
[1765210162879,0.0111155,89966.0,89965.0,0.08244155]
[1765210163084,0.0111155,89966.0,89965.0,0.16471155]
[1765210164293,0.0111155,89966.0,89965.0,0.16571155]
[1765210166091,0.00016669,89980.0,89965.0,0.16571155]
[1765210166092,0.01128049,89980.0,89979.0,0.1636]
[1765210167192,0.01328049,89980.0,89979.0,0.1636]
[1765210167391,0.01628049,89980.0,89979.0,0.1636]
[1765210167592,0.00516669,89980.0,89979.0,0.1636]
[1765210168390,0.00216669,89980.0,89979.0,0.1636]
[1765210168698,0.00316669,89980.0,89979.0,0.1636]
[1765210169086,0.00216669,89980.0,89979.0,0.1636]
[1765210169888,0.00116669,89980.0,89979.0,0.1636]
[1765210171289,0.00316669,89980.0,89979.0,0.1636]
[1765210171896,0.00216669,89980.0,89979.0,0.1747139]
[1765210172089,0.01528049,89980.0,89979.0,0.1636]
[1765210172699,0.01328049,89980.0,89979.0,0.1636]
[1765210172894,0.01228049,89980.0,89979.0,0.1636]
[1765210173499,0.01128049,89980.0,89979.0,0.1636]
[1765210173694,0.01228049,89980.0,89979.0,0.1636]
[1765210177494,0.00116669,89980.0,89979.0,0.1636]
[1765210177697,0.0591387,89999.0,89998.0,0.1636]
[1765210177906,0.0111111,90002.0,90001.0,0.1636]
[1765210178202,0.0111098,90012.0,90011.0,0.1636]
[1765210178403,0.01222043,90015.0,90014.0,0.1636]
[1765210178606,0.00111093,90015.0,90014.0,0.1636]
[1765210178810,0.07874726,90022.0,90021.0,0.1636]
[1765210179107,0.00016669,90024.0,90023.0,0.1636]
[1765210180298,0.00316669,90024.0,90023.0,0.1636]
[1765210181309,0.00416669,90024.0,90023.0,0.1636]
[1765210182107,0.00016669,90024.0,90023.0,0.1646]
[1765210183001,0.00016669,90024.0,90023.0,0.1636]
[1765210183401,0.0111097,90013.0,90012.0,0.20724]
[1765210184105,0.00116669,90024.0,90012.0,0.20724]
[1765210184106,0.00116669,90024.0,90017.0,0.16028]
[1765210184414,0.0111062,90041.0,90039.0,0.16028]
[1765210184905,0.0111062,90041.0,90025.0,0.05104]
[1765210185105,0.0111062,90041.0,90039.0,0.16028]
[1765210185507,0.00211062,90040.0,90039.0,0.16028]
[1765210185899,0.00711062,90040.0,90039.0,0.16128]
[1765210186110,0.01111062,90040.0,90039.0,0.16128]
[1765210187610,0.00711062,90040.0,90039.0,0.16028]
[1765210188110,0.00311062,90040.0,90039.0,0.16028]
[1765210188311,0.00211062,90040.0,90039.0,0.16028]
[1765210188511,0.00411062,90040.0,90039.0,0.16028]
[1765210188706,0.00016634,90049.0,90048.0,0.16028]
[1765210189707,0.0111023,90073.0,90053.0,0.16028]
[1765210189708,0.0111046,90054.0,90053.0,0.16028]
[1765210191506,0.0121046,90054.0,90053.0,0.16028]
[1765210192008,0.0141046,90054.0,90053.0,0.16028]
[1765210192506,0.0121046,90054.0,90053.0,0.16028]
[1765210192709,0.0131046,90054.0,90053.0,0.16028]
[1765210194104,0.0121046,90054.0,90053.0,0.16028]
[1765210194412,0.0131046,90054.0,90053.0,0.16028]
[1765210194803,0.008,90054.0,90053.0,0.16028]
[1765210195001,0.0191046,90054.0,90053.0,0.16028]
[1765210195412,0.0221046,90054.0,90053.0,0.16128]
[1765210196004,0.0161046,90054.0,90053.0,0.16128]
[1765210196510,0.005,90054.0,90053.0,0.16128]
[1765210196719,0.0111023,90073.0,90072.0,0.16028]
[1765210198208,0.0111004,90089.0,90064.0,0.05104]
[1765210198209,0.0313604,90088.0,90087.0,0.16028]
[1765210198611,0.1143004,90088.0,90087.0,0.16028]
[1765210199309,0.1213004,90088.0,90087.0,0.16028]
[1765210199508,0.1213004,90088.0,90077.0,0.2103]
[1765210199509,0.0111017,90078.0,90077.0,0.2103]
[1765210200209,0.03226,90088.0,90087.0,0.07923]
[1765210200408,0.03226,90088.0,90087.0,0.15926]
[1765210200618,0.0110996,90095.0,90094.0,0.15926]
[1765210200816,0.41879895,90114.0,90103.0,0.04603]
[1765210201009,0.0110985,90104.0,90103.0,0.20529]
[1765210201212,0.0111001,90091.0,90090.0,0.20529]
[1765210201515,0.1715907,90086.0,90077.0,0.001]
[1765210201815,0.0111028,90069.0,90068.0,0.15926]
[1765210202029,0.0913024,90073.0,90072.0,0.15926]
[1765210202203,0.0111004,90088.0,90064.0,0.2103]
[1765210202204,0.0111033,90065.0,90064.0,0.2103]
[1765210202518,0.1715925,90072.0,90071.0,0.15926]
[1765210202903,0.00016616,90074.0,90073.0,0.15926]
[1765210203103,0.00016616,90074.0,90073.0,0.1703623]
[1765210203505,0.00016616,90074.0,90073.0,0.15926]
[1765210204117,0.08036616,90074.0,90073.0,0.15926]
[1765210204417,0.08036616,90074.0,90073.0,0.16126]
[1765210204615,0.08036616,90074.0,90073.0,0.16526]
[1765210204812,0.16065616,90074.0,90073.0,0.16526]
[1765210205020,0.16165616,90074.0,90073.0,0.004]
[1765210205210,0.01226836,90074.0,90073.0,0.16126]
[1765210205612,0.17275836,90074.0,90073.0,0.08123]
[1765210205920,0.17275836,90074.0,90055.0,0.00016649]
[1765210205921,0.0111044,90056.0,90055.0,0.15942649]
[1765210206616,0.1715944,90056.0,90055.0,0.15942649]
[1765210207209,0.0111044,90056.0,90055.0,0.15942649]
[1765210207508,0.01126836,90074.0,90073.0,0.15926]
[1765210207714,0.0111033,90065.0,90064.0,0.20529]
[1765210208213,0.0111044,90056.0,90055.0,0.16542649]
[1765210208415,0.0111044,90056.0,90055.0,0.16042649]
[1765210208714,0.0111044,90056.0,90055.0,0.16542649]
[1765210209314,0.1715944,90056.0,90055.0,0.00616649]
[1765210209914,0.1715944,90056.0,90055.0,0.00516649]
[1765210210114,0.1715944,90056.0,90055.0,0.00016649]
[1765210210709,0.1715944,90056.0,90055.0,0.00616649]
[1765210210914,0.1715944,90056.0,90055.0,0.00716649]
[1765210213623,0.0111065,90039.0,90038.0,0.19626]
[1765210214319,0.0111056,90047.0,90046.0,0.14219]
[1765210215027,0.1609065,90039.0,90038.0,0.15319]
[1765210215222,0.0111065,90039.0,90038.0,0.15319]
[1765210216014,0.0111065,90039.0,90038.0,0.15619]
[1765210216729,0.0111065,90039.0,90038.0,0.14519]
[1765210216931,0.0001666,90056.0,90042.0,0.14219]
[1765210217119,0.0111058,90045.0,90044.0,0.14219]
[1765210217726,0.0835158,90045.0,90044.0,0.14219]
[1765210217923,0.1609065,90039.0,90038.0,0.15219]
[1765210218128,0.1609065,90039.0,90038.0,0.01]
[1765210218330,0.1609065,90039.0,90038.0,0.003]
[1765210218925,0.1609065,90039.0,90037.0,0.0001666]
[1765210218926,0.1498,90038.0,90037.0,0.0001666]
[1765210219838,0.1498,90038.0,90017.0,0.10085391]
[1765210219839,0.1609091,90018.0,90017.0,0.10085391]
[1765210220029,0.1609091,90018.0,90017.0,0.14219]
[1765210220030,0.0111091,90018.0,90017.0,0.14219]
[1765210220249,0.0835172,90033.0,90032.0,0.07119]
[1765210220560,0.0111088,90021.0,90020.0,0.14219]
[1765210221051,0.0001666,90030.0,90029.0,0.14219]
[1765210221849,0.1499666,90030.0,90029.0,0.14219]
[1765210222145,0.1499666,90030.0,90020.0,0.074]
[1765210222146,0.0001666,90030.0,90020.0,0.074]
[1765210222347,0.0001666,90030.0,90029.0,0.14219]
[1765210222748,0.1499666,90030.0,90029.0,0.14219]
[1765210223055,0.1609082,90025.0,90024.0,0.14219]
[1765210223252,0.0835187,90021.0,90020.0,0.003]
[1765210223444,0.1609087,90021.0,90020.0,0.07419]
[1765210224043,0.1609093,90016.0,90015.0,0.00111093]
[1765210224555,0.1609093,90016.0,90015.0,0.14330093]
[1765210224752,0.1609093,90016.0,90011.0,0.0001666]
[1765210224753,0.1609098,90012.0,90011.0,0.0001666]
[1765210225153,0.0111098,90012.0,90011.0,0.1423566]
[1765210225945,0.0111093,90017.0,90016.0,0.14219]
[1765210227160,0.1609093,90017.0,90016.0,0.14219]
[1765210227858,0.0835198,90012.0,90011.0,0.1423566]
[1765210228047,0.1609098,90012.0,90011.0,0.1423566]
[1765210228446,0.1609098,90012.0,90011.0,0.0713566]
[1765210228862,0.1609098,90012.0,90011.0,0.1423566]
[1765210229046,0.1609098,90012.0,90011.0,0.1473566]
[1765210229454,0.1609098,90012.0,90011.0,0.0051666]
[1765210229653,0.1609098,90012.0,90011.0,0.0071666]
[1765210230051,0.2066898,90012.0,90011.0,0.0071666]
[1765210230248,0.2066898,90012.0,90000.0,0.21860391]
[1765210230249,0.0835212,90001.0,90000.0,0.21860391]
[1765210230444,0.0835212,90001.0,90000.0,0.18894]
[1765210230852,0.1498,90000.0,89999.0,0.02966391]
[1765210231055,0.1498,90000.0,89999.0,0.14219]
[1765210231250,0.0111112,90001.0,90000.0,0.18894]
[1765210231444,0.0111112,90001.0,90000.0,0.19194]
[1765210231646,0.0111112,90001.0,90000.0,0.19994]
[1765210231852,0.1609112,90001.0,90000.0,0.011]
[1765210232059,0.1609112,90001.0,90000.0,0.003]
[1765210232255,0.0001666,90008.0,89999.0,0.011]
[1765210232464,0.1609113,90000.0,89999.0,0.011]
[1765210233159,0.0835213,90000.0,89999.0,0.15019]
[1765210233357,0.0111109,90004.0,90003.0,0.14219]
[1765210234058,0.1609109,90004.0,90003.0,0.14219]
[1765210234557,0.1609113,90000.0,89999.0,0.14719]
[1765210234761,0.0835213,90000.0,89999.0,0.15019]
[1765210234951,0.0111113,90000.0,89999.0,0.15019]
[1765210235151,0.0111113,90000.0,89999.0,0.14519]
[1765210235359,0.0111113,90000.0,89999.0,0.14219]
[1765210236251,0.0111113,90000.0,89999.0,0.14519]
[1765210236660,0.0835213,90000.0,89999.0,0.14519]
[1765210236960,0.0835213,90000.0,89999.0,0.15019]
[1765210237359,0.0001666,90008.0,89999.0,0.008]
[1765210237560,0.1610769,90008.0,90007.0,0.14219]
[1765210239458,0.1610769,90008.0,90007.0,0.14419]
[1765210239859,0.1610769,90008.0,90007.0,0.005]
[1765210242166,0.1610769,90008.0,89997.0,0.00012787]
[1765210242167,0.1540915,89998.0,89997.0,0.00012787]
[1765210242469,0.1503023,89992.0,89991.0,0.0001666]
[1765210243562,0.15041961,89992.0,89991.0,0.0001666]
[1765210244066,0.15141961,89992.0,89991.0,0.0001666]
[1765210244667,0.15141961,89992.0,89991.0,0.0011666]
[1765210244668,0.15741961,89992.0,89991.0,0.0011666]
[1765210246168,0.13919,89991.0,89980.0,0.02192]
[1765210246368,0.1503036,89981.0,89980.0,0.02192]
[1765210246667,0.15041437,89981.0,89980.0,0.02192]
[1765210247465,0.1503046,89973.0,89972.0,0.00016669]
[1765210248464,0.15039581,89973.0,89972.0,0.00016669]
[1765210248859,0.15039581,89973.0,89972.0,0.13662669]
[1765210249862,0.15039581,89973.0,89972.0,0.00216669]
[1765210250465,0.1503055,89966.0,89964.0,1.0]
[1765210250659,0.13919,89965.0,89964.0,1.0]
[1765210250965,0.13919,89965.0,89964.0,1.13546]
[1765210251165,0.06862,89965.0,89964.0,1.13546]
[1765210251669,0.13919,89965.0,89964.0,1.13546]
[1765210251872,0.13919,89965.0,89964.0,1.13746]
[1765210252667,0.13919,89965.0,89964.0,1.13846]
[1765210253576,0.13919,89965.0,89964.0,1.002]
[1765210258873,0.01125472,89966.0,89965.0,0.13546]
[1765210259475,0.1421138,89980.0,89979.0,0.13009]
[1765210260369,0.0761849,89971.0,89970.0,0.16968]
[1765210260571,0.07051922,89981.0,89980.0,0.16968]
[1765210260872,0.0111136,89981.0,89980.0,0.16968]
[1765210261267,0.1421136,89981.0,89980.0,0.16968]
[1765210261489,0.1421136,89981.0,89980.0,0.13009]
[1765210261971,0.0111136,89981.0,89980.0,0.16968]
[1765210262472,0.00016669,89989.0,89980.0,0.16968]
[1765210262473,0.00016669,89989.0,89988.0,0.13009]
[1765210264983,0.00016669,89989.0,89988.0,0.13109]
[1765210265278,0.00016669,89989.0,89988.0,0.13009]
[1765210265780,0.00116669,89989.0,89988.0,0.13009]
[1765210265973,0.00116669,89989.0,89988.0,0.13209]
[1765210266180,0.07051482,90017.0,90014.0,0.13009]
[1765210266480,0.06618093,90015.0,90014.0,0.13009]
[1765210267076,0.13211093,90015.0,90014.0,0.13009]
[1765210267378,0.13511093,90015.0,90014.0,0.13009]
[1765210268177,0.13511093,90015.0,90014.0,0.13109]
[1765210268575,0.13511093,90015.0,90014.0,0.001]
[1765210268874,0.131,90006.0,90005.0,0.06678669]
[1765210269080,0.131,90006.0,90005.0,0.00016669]
[1765210270083,0.1421123,89992.0,89991.0,0.13009]
[1765210270481,0.1421134,89984.0,89983.0,0.13009]
[1765210271869,0.131,89984.0,89983.0,0.13009]
[1765210272073,0.131,89984.0,89983.0,0.13109]
[1765210272268,0.14656899,89992.0,89991.0,0.12831]
[1765210272578,0.00616669,89992.0,89991.0,0.16727]
[1765210272975,0.00016669,89992.0,89991.0,0.16627]
[1765210273774,0.00016669,89992.0,89991.0,0.1773824]
[1765210274180,0.0749408,90004.0,90003.0,0.12731]
[1765210274484,0.1404008,90004.0,90003.0,0.12731]
[1765210275386,0.1404008,90004.0,90003.0,0.06463]
[1765210275884,0.12929,89995.0,89994.0,0.00016669]
[1765210276081,0.0749414,90000.0,89999.0,0.12731]
[1765210276569,0.0749419,89995.0,89994.0,0.00016669]
[1765210276775,0.0749419,89995.0,89994.0,0.12747669]
[1765210277181,0.0759419,89995.0,89994.0,0.12947669]
[1765210277785,0.06483,89995.0,89994.0,0.12947669]
[1765210278286,0.06483,89995.0,89994.0,0.12747669]
[1765210278585,0.001,89995.0,89994.0,0.12847669]
[1765210278786,0.0111114,90000.0,89999.0,0.12731]
[1765210279182,0.0111109,90004.0,90003.0,0.06268]
[1765210279484,0.12929,89995.0,89994.0,0.00116669]
[1765210279681,0.12929,89995.0,89994.0,0.12847669]
[1765210280084,0.12929,89995.0,89994.0,0.12747669]
[1765210280282,0.1404013,90000.0,89999.0,0.12731]
[1765210280485,0.1404019,89995.0,89994.0,0.12747669]
[1765210280686,0.1404019,89995.0,89994.0,0.12947669]
[1765210281178,0.0111119,89995.0,89994.0,0.12947669]
[1765210281377,0.1404019,89995.0,89994.0,0.12947669]
[1765210281579,0.1404019,89995.0,89994.0,0.12747669]
[1765210282576,0.1434019,89995.0,89994.0,0.12747669]
[1765210283385,0.005,89995.0,89994.0,0.12847669]
[1765210283782,0.005,89995.0,89994.0,0.12947669]
[1765210284289,0.005,89995.0,89994.0,0.12847669]
[1765210284474,0.005,89995.0,89994.0,0.12947669]
[1765210284880,0.13029,89995.0,89994.0,0.12847669]
[1765210285281,0.001,89995.0,89994.0,0.12847669]
[1765210286080,0.06483,89995.0,89994.0,0.12847669]
[1765210286485,0.12929,89995.0,89994.0,0.12847669]
[1765210286993,0.12929,89995.0,89994.0,0.12947669]
[1765210287389,0.06383,89995.0,89994.0,0.12747669]
[1765210287588,0.0111115,89999.0,89998.0,0.12731]
[1765210287889,0.0749411,90002.0,90001.0,0.12731]
[1765210288203,0.0111107,90005.0,90004.0,0.12731]
[1765210288494,0.07051602,90008.0,90007.0,0.12731]
[1765210288688,0.05940562,90010.0,90009.0,0.12731]
[1765210288891,0.07051562,90011.0,90009.0,0.12731]
[1765210289195,0.1404,90011.0,90010.0,0.16627]
[1765210290992,0.1404019,89995.0,89994.0,0.00016669]
[1765210291587,0.1404019,89995.0,89994.0,0.00416669]
[1765210292500,0.1404019,89995.0,89994.0,0.06879669]
[1765210292691,0.0809419,89995.0,89994.0,0.13247669]
[1765210293093,0.12929,89984.0,89983.0,0.0596026]
[1765210293294,0.12929,89984.0,89983.0,0.02977]
[1765210293493,0.12929,89965.0,89964.0,1.12731]
[1765210293701,0.06383,89965.0,89964.0,1.12731]
[1765210294002,0.18927473,89974.0,89973.0,0.06463]
[1765210294199,0.18927473,89974.0,89973.0,0.12731]
[1765210294393,0.12929,89974.0,89973.0,0.12731]
[1765210294589,0.07109893,89976.0,89975.0,0.12731]
[1765210294790,0.0111142,89976.0,89975.0,0.12731]
[1765210295007,0.1404042,89976.0,89975.0,0.12731]
[1765210295303,0.0111142,89976.0,89975.0,0.12731]
[1765210295507,0.0749442,89976.0,89975.0,0.12731]
[1765210295898,0.1404042,89976.0,89975.0,0.12731]
[1765210296697,0.1404042,89976.0,89973.0,0.004]
[1765210296698,0.07109843,89981.0,89979.0,0.12731]
[1765210297005,0.0111137,89981.0,89980.0,0.16627]
[1765210297193,0.00016669,89982.0,89981.0,0.12731]
[1765210299399,0.00116669,89982.0,89981.0,0.12731]
[1765210299601,0.00116669,89982.0,89981.0,0.12931]
[1765210301101,0.00116669,89982.0,89981.0,0.12731]
[1765210301306,0.05998473,89997.0,89996.0,0.12731]
[1765210301501,0.07874726,90006.0,89997.0,0.12731]
[1765210302003,0.14257726,90006.0,90005.0,0.12409]
[1765210302192,0.20084726,90006.0,90005.0,0.12409]
[1765210302607,0.11492,89997.0,89996.0,0.11590669]
[1765210302807,0.17474433,89997.0,89996.0,0.11590669]
[1765210303002,0.05982433,89997.0,89996.0,0.11590669]
[1765210303207,0.05982433,90000.0,89999.0,0.11574]
[1765210303503,0.006,90006.0,90002.0,0.11574]
[1765210303504,0.05982433,90003.0,90002.0,0.11574]
[1765210303807,0.006,90006.0,90005.0,0.11574]
[1765210304503,0.06265,90006.0,90005.0,0.11574]
[1765210304706,0.07874726,90014.0,90012.0,0.11574]